{"text_format":"3","workbook":"xlsx","n_sheets":4,"sheets":["Inicio","Presupuesto para la boda","Gastos detallados","Gastos detallados continuados"],"not_rendered":{"charts":1,"images":2,"defined_names":22},"read":"whole","date_system":"1900"}

{"sheet":"Inicio","index":0,"n_rows":9,"n_cols":2,"rows_kept":9}
[]
[null,"INFORMACIÓN SOBRE ESTA PLANTILLA"]
[]
[null,"Use esta plantilla para realizar un seguimiento de los gastos de su boda."]
[null,"Escriba los costos estimados y reales ocasionados en varias categorías en hojas de cálculo separadas."]
[null,"El resumen del presupuesto para la boda y el gráfico se actualizan automáticamente."]
[null,"Nota: "]
[null,"Se facilitan instrucciones adicionales en la columna A de cada hoja de cálculo. Este texto se ha ocultado a propósito. Para eliminar el texto, seleccione la columna A y, a continuación, ELIMINAR. "]
[null,"Para obtener más información sobre las tablas, presione las teclas MAYÚS y F10 dentro de una tabla, seleccione la opción TABLA y, después, TEXTO ALTERNATIVO."]

{"sheet":"Presupuesto para la boda","index":1,"n_rows":17,"n_cols":5,"rows_kept":17,"merged":[[3,1,3,3],[17,1,40,4]]}
[]
["Cree el presupuesto para una boda en esta hoja de cálculo. Escriba los detalles en las tablas de las hojas de cálculo Ropa-Recepción-Música-Imágenes y Decoración-Flores-Regalos-Viaje para actualizar el resumen y el gráfico en la hoja de cálculo actual. Encontrará instrucciones útiles sobre cómo usar esta hoja de cálculo en las celdas de esta columna. La etiqueta Fecha de la boda se encuentra en la celda C1.","Fecha de la boda:",null,"Días restantes:"]
["Escriba la fecha de la boda en la celda C2. Los días restantes se calculan de forma automática en la celda E2.","2023-09-23",null,{"$f":"B3-TODAY()","v":177}]
[null,"Resumen del presupuesto para la boda"]
[]
["La tabla de resumen del presupuesto, que empieza en la celda C6, se actualiza automáticamente. La instrucción siguiente se encuentra en la celda A19.","CATEGORÍA","ESTIMADO","REAL","DIFERENCIA"]
[null,"Viajes",{"$f":"Total_transporte_viajes_estimado","v":{"v":100,"d":"100.00"}},{"$f":"Total_transporte_viajes_real","v":{"v":165,"d":"165.00"}},{"$f":"ResumenDelPresupuesto[[#This Row],[ESTIMADO]]-ResumenDelPresupuesto[[#This Row],[REAL]]","v":{"v":-65,"d":"-65.00"}}]
[null,"Música",{"$f":"Total_Música_entretenimiento_estimado","v":{"v":600,"d":"600.00"}},{"$f":"Total_Música_entretenimiento_real","v":{"v":400,"d":"400.00"}},{"$f":"ResumenDelPresupuesto[[#This Row],[ESTIMADO]]-ResumenDelPresupuesto[[#This Row],[REAL]]","v":{"v":200,"d":"200.00"}}]
[null,"Decoración",{"$f":"Total_Decoración_estimado","v":{"v":700,"d":"700.00"}},{"$f":"Total_Decoración_real","v":{"v":720,"d":"720.00"}},{"$f":"ResumenDelPresupuesto[[#This Row],[ESTIMADO]]-ResumenDelPresupuesto[[#This Row],[REAL]]","v":{"v":-20,"d":"-20.00"}}]
[null,"Flores",{"$f":"Total_Flores_estimado","v":{"v":900,"d":"900.00"}},{"$f":"Total_Flores_real","v":{"v":850,"d":"850.00"}},{"$f":"ResumenDelPresupuesto[[#This Row],[ESTIMADO]]-ResumenDelPresupuesto[[#This Row],[REAL]]","v":{"v":50,"d":"50.00"}}]
[null,"Impresión",{"$f":"Total_Impresión_Artículos_De_Papelería_estimado","v":{"v":935,"d":"935.00"}},{"$f":"Total_Impresión_Artículos_De_Papelería_real","v":{"v":870,"d":"870.00"}},{"$f":"ResumenDelPresupuesto[[#This Row],[ESTIMADO]]-ResumenDelPresupuesto[[#This Row],[REAL]]","v":{"v":65,"d":"65.00"}}]
[null,"Recepción",{"$f":"Total_recepción_estimado","v":{"v":1050,"d":"1,050.00"}},{"$f":"Total_recepción_real","v":{"v":928,"d":"928.00"}},{"$f":"ResumenDelPresupuesto[[#This Row],[ESTIMADO]]-ResumenDelPresupuesto[[#This Row],[REAL]]","v":{"v":122,"d":"122.00"}}]
[null,"Otros",{"$f":"Total_Otros_Gastos_estimado","v":{"v":885,"d":"885.00"}},{"$f":"Total_Otros_Gastos_real","v":{"v":1021,"d":"1,021.00"}},{"$f":"ResumenDelPresupuesto[[#This Row],[ESTIMADO]]-ResumenDelPresupuesto[[#This Row],[REAL]]","v":{"v":-136,"d":"-136.00"}}]
[null,"Regalos",{"$f":"Total_Regalos_estimado","v":{"v":1345,"d":"1,345.00"}},{"$f":"Total_Regalos_real","v":{"v":1075,"d":"1,075.00"}},{"$f":"ResumenDelPresupuesto[[#This Row],[ESTIMADO]]-ResumenDelPresupuesto[[#This Row],[REAL]]","v":{"v":270,"d":"270.00"}}]
[null,"Fotografía",{"$f":"Total_Fotografía_estimado","v":{"v":1625,"d":"1,625.00"}},{"$f":"Total_Fotografía_real","v":{"v":1575,"d":"1,575.00"}},{"$f":"ResumenDelPresupuesto[[#This Row],[ESTIMADO]]-ResumenDelPresupuesto[[#This Row],[REAL]]","v":{"v":50,"d":"50.00"}}]
[null,"Ropa",{"$f":"Total_Ropa_estimado","v":{"v":9490,"d":"9,490.00"}},{"$f":"Total_Ropa_real","v":{"v":9770,"d":"9,770.00"}},{"$f":"ResumenDelPresupuesto[[#This Row],[ESTIMADO]]-ResumenDelPresupuesto[[#This Row],[REAL]]","v":{"v":-280,"d":"-280.00"}}]
[null,"Gastos totales",{"$f":"SUBTOTAL(109,ResumenDelPresupuesto[ESTIMADO])","v":{"v":17630,"d":"17,630.00"}},{"$f":"SUBTOTAL(109,ResumenDelPresupuesto[REAL])","v":{"v":17374,"d":"17,374.00"}},{"$f":"SUBTOTAL(109,ResumenDelPresupuesto[DIFERENCIA])","v":{"v":256,"d":"256.00"}}]

{"sheet":"Gastos detallados","index":2,"n_rows":59,"n_cols":6,"rows_kept":59,"merged":[[1,1,1,4]]}
[]
[null,"Gastos detallados"]
[]
["Escriba los costos estimados y reales de cada categoría en las respectivas tablas de esta hoja de cálculo. La diferencia se calcula automáticamente. La etiqueta Ropa se encuentra en la celda de la derecha. Encontrará instrucciones útiles sobre cómo usar esta hoja de cálculo en las celdas de esta columna. Presione la tecla de flecha abajo para empezar.","Ropa",{"$nulls":3}," "]
[" Escriba los detalles en la tabla Ropa que comienza en la celda de la derecha. La instrucción siguiente se encuentra en la celda A18.","CATEGORÍA","ESTIMADO","REAL","DIFERENCIA"," "]
[null,"Anillos de compromiso",{"v":1500,"d":"1,500.00"},{"v":1500,"d":"1,500.00"},{"$f":"'Gastos detallados'!$C6-'Gastos detallados'!$D6","v":{"v":0,"d":"0.00"}}]
[null,"Anillo del futuro cónyuge 1",{"v":2000,"d":"2,000.00"},{"v":2300,"d":"2,300.00"},{"$f":"'Gastos detallados'!$C7-'Gastos detallados'!$D7","v":{"v":-300,"d":"-300.00 "}}]
[null,"Vestido o esmoquin del futuro cónyuge 1",{"v":3000,"d":"3,000.00"},{"v":2750,"d":"2,750.00"},{"$f":"'Gastos detallados'!$C8-'Gastos detallados'!$D8","v":{"v":250,"d":"250.00"}}]
[null,"Velo o tocado del futuro cónyuge 1",{"v":500,"d":"500.00"},{"v":500,"d":"500.00"},{"$f":"'Gastos detallados'!$C9-'Gastos detallados'!$D9","v":{"v":0,"d":"0.00"}}]
[null,"Zapatos del futuro cónyuge 1",{"v":350,"d":"350.00"},{"v":300,"d":"300.00"},{"$f":"'Gastos detallados'!$C10-'Gastos detallados'!$D10","v":{"v":50,"d":"50.00"}}]
[null,"Joyas del futuro cónyuge 1",{"v":400,"d":"400.00"},{"v":550,"d":"550.00"},{"$f":"'Gastos detallados'!$C11-'Gastos detallados'!$D11","v":{"v":-150,"d":"-150.00 "}}]
[null,"Medias del futuro cónyuge 1",{"v":20,"d":"20.00"},{"v":20,"d":"20.00"},{"$f":"'Gastos detallados'!$C12-'Gastos detallados'!$D12","v":{"v":0,"d":"0.00"}}]
[null,"Anillo del futuro cónyuge 2",{"v":300,"d":"300.00"},{"v":250,"d":"250.00"},{"$f":"'Gastos detallados'!$C13-'Gastos detallados'!$D13","v":{"v":50,"d":"50.00"}}]
[null,"Vestido o esmoquin del futuro cónyuge 2",{"v":300,"d":"300.00"},{"v":350,"d":"350.00"},{"$f":"'Gastos detallados'!$C14-'Gastos detallados'!$D14","v":{"v":-50,"d":"-50.00 "}}]
[null,"Velo o tocado del futuro cónyuge 2",{"v":500,"d":"500.00"},{"v":500,"d":"500.00"},{"$f":"'Gastos detallados'!$C15-'Gastos detallados'!$D15","v":{"v":0,"d":"0.00"}}]
[null,"Zapatos del futuro cónyuge 2",{"v":200,"d":"200.00"},{"v":175,"d":"175.00"},{"$f":"'Gastos detallados'!$C16-'Gastos detallados'!$D16","v":{"v":25,"d":"25.00"}}]
[null,"Joyas del futuro cónyuge 2",{"v":400,"d":"400.00"},{"v":550,"d":"550.00"},{"$f":"'Gastos detallados'!$C17-'Gastos detallados'!$D17","v":{"v":-150,"d":"-150.00 "}}]
[null,"Medias del futuro cónyuge 2",{"v":20,"d":"20.00"},{"v":25,"d":"25.00"},{"$f":"'Gastos detallados'!$C18-'Gastos detallados'!$D18","v":{"v":-5,"d":"-5.00 "}}]
[null,"Total de la ropa",{"$f":"SUBTOTAL(109,Ropa[ESTIMADO])","v":{"v":9490,"d":"9,490.00"}},{"$f":"SUBTOTAL(109,Ropa[REAL])","v":{"v":9770,"d":"9,770.00"}},{"$f":"SUBTOTAL(109,Ropa[DIFERENCIA])","v":{"v":-280,"d":"-280.00 "}}]
[]
["La etiqueta Recepción se encuentra en la celda de la derecha.","Recepción*"]
["Escriba los costos de recepción, sin incluir los del entretenimiento y la decoración, en la tabla que empieza en la celda de la derecha. La instrucción siguiente se encuentra en la celda A31.","CATEGORÍA","ESTIMADO","REAL","DIFERENCIA"]
[null,"Gastos de habitaciones o salas",{"v":200,"d":"200.00"},{"v":150,"d":"150.00"},{"$f":"'Gastos detallados'!$C23-'Gastos detallados'!$D23","v":{"v":50,"d":"50.00"}}]
[null,"Mesas y sillas",{"v":100,"d":"100.00"},{"v":50,"d":"50.00"},{"$f":"'Gastos detallados'!$C24-'Gastos detallados'!$D24","v":{"v":50,"d":"50.00"}}]
[null,"Comida",{"v":0,"d":"0.00"},{"v":0,"d":"0.00"},{"$f":"'Gastos detallados'!$C25-'Gastos detallados'!$D25","v":{"v":0,"d":"0.00"}}]
[null,"Bebidas",{"v":0,"d":"0.00"},{"v":0,"d":"0.00"},{"$f":"'Gastos detallados'!$C26-'Gastos detallados'!$D26","v":{"v":0,"d":"0.00"}}]
[null,"Mantelería",{"v":0,"d":"0.00"},{"v":0,"d":"0.00"},{"$f":"'Gastos detallados'!$C27-'Gastos detallados'!$D27","v":{"v":0,"d":"0.00"}}]
[null,"Tarta",{"v":700,"d":"700.00"},{"v":700,"d":"700.00"},{"$f":"'Gastos detallados'!$C28-'Gastos detallados'!$D28","v":{"v":0,"d":"0.00"}}]
[null,"Detalles de los novios",{"v":50,"d":"50.00"},{"v":28,"d":"28.00"},{"$f":"'Gastos detallados'!$C29-'Gastos detallados'!$D29","v":{"v":22,"d":"22.00"}}]
[null,"Personal y compensaciones",{"v":0,"d":"0.00"},{"v":0,"d":"0.00"},{"$f":"'Gastos detallados'!$C30-'Gastos detallados'!$D30","v":{"v":0,"d":"0.00"}}]
[null,"Total de la recepción",{"$f":"SUBTOTAL(109,Recepción[ESTIMADO])","v":{"v":1050,"d":"1,050.00"}},{"$f":"SUBTOTAL(109,Recepción[REAL])","v":{"v":928,"d":"928.00"}},{"$f":"SUBTOTAL(109,Recepción[DIFERENCIA])","v":{"v":122,"d":"122.00"}}]
[null,"* No se incluye la decoración ni el entretenimiento"]
[]
["La etiqueta Música o entretenimiento se encuentra en la celda de la derecha.","Música y entretenimiento"]
["Escriba la información en la tabla Música que comienza en la celda de la derecha. La instrucción siguiente se encuentra en la celda A37.","CATEGORÍA","ESTIMADO","REAL","DIFERENCIA"]
[null,"Músicos para la ceremonia",{"v":400,"d":"400.00"},{"v":400,"d":"400.00"},{"$f":"'Gastos detallados'!$C36-'Gastos detallados'!$D36","v":{"v":0,"d":"0.00"}}]
[null,"Banda o DJ para la recepción",{"v":200,"d":"200.00"},{"v":0,"d":"0.00"},{"$f":"'Gastos detallados'!$C37-'Gastos detallados'!$D37","v":{"v":200,"d":"200.00"}}]
[null,"Total de la música y el entretenimiento",{"$f":"SUBTOTAL(109,Música[ESTIMADO])","v":{"v":600,"d":"600.00"}},{"$f":"SUBTOTAL(109,Música[REAL])","v":{"v":400,"d":"400.00"}},{"$f":"SUBTOTAL(109,Música[DIFERENCIA])","v":{"v":200,"d":"200.00"}}]
[]
["La etiqueta Impresión o Material de papelería se encuentra en la celda de la derecha.","Impresión o material de papelería"]
["Escriba la información en la tabla Impresión que comienza en la celda de la derecha. La instrucción siguiente se encuentra en la celda A50.","CATEGORÍA","ESTIMADO","REAL","DIFERENCIA"]
[null,"Invitaciones",{"v":500,"d":"500.00"},{"v":450,"d":"450.00"},{"$f":"'Gastos detallados'!$C42-'Gastos detallados'!$D42","v":{"v":50,"d":"50.00"}}]
[null,"Anuncios",{"v":200,"d":"200.00"},{"v":175,"d":"175.00"},{"$f":"'Gastos detallados'!$C43-'Gastos detallados'!$D43","v":{"v":25,"d":"25.00"}}]
[null,"Tarjetas de agradecimiento",{"v":100,"d":"100.00"},{"v":100,"d":"100.00"},{"$f":"'Gastos detallados'!$C44-'Gastos detallados'!$D44","v":{"v":0,"d":"0.00"}}]
[null,"Artículos de papelería personales",{"v":0,"d":"0.00"},{"v":0,"d":"0.00"},{"$f":"'Gastos detallados'!$C45-'Gastos detallados'!$D45","v":{"v":0,"d":"0.00"}}]
[null,"Libro de invitados",{"v":25,"d":"25.00"},{"v":25,"d":"25.00"},{"$f":"'Gastos detallados'!$C46-'Gastos detallados'!$D46","v":{"v":0,"d":"0.00"}}]
[null,"Programas",{"v":75,"d":"75.00"},{"v":80,"d":"80.00"},{"$f":"'Gastos detallados'!$C47-'Gastos detallados'!$D47","v":{"v":-5,"d":"-5.00 "}}]
[null,"Servilletas de la recepción",{"v":35,"d":"35.00"},{"v":40,"d":"40.00"},{"$f":"'Gastos detallados'!$C48-'Gastos detallados'!$D48","v":{"v":-5,"d":"-5.00 "}}]
[null,"Cajitas de cerillas",{"v":0,"d":"0.00"},{"v":0,"d":"0.00"},{"$f":"'Gastos detallados'!$C49-'Gastos detallados'!$D49","v":{"v":0,"d":"0.00"}}]
[null,"Caligrafía",{"v":0,"d":"0.00"},{"v":0,"d":"0.00"},{"$f":"'Gastos detallados'!$C50-'Gastos detallados'!$D50","v":{"v":0,"d":"0.00"}}]
[null,"Total de la impresión o el material de papelería",{"$f":"SUBTOTAL(109,Impresión[ESTIMADO])","v":{"v":935,"d":"935.00"}},{"$f":"SUBTOTAL(109,Impresión[REAL])","v":{"v":870,"d":"870.00"}},{"$f":"SUBTOTAL(109,Impresión[DIFERENCIA])","v":{"v":65,"d":"65.00"}}]
[]
["La etiqueta Fotografía se encuentra en la celda de la derecha.","Fotografía"]
["Escriba la información en la tabla Fotografía, a partir de la celda de la derecha.","CATEGORÍA","ESTIMADO","REAL","DIFERENCIA"]
[null,"Vestidos de noche",{"v":1300,"d":"1,300.00"},{"v":1300,"d":"1,300.00"},{"$f":"'Gastos detallados'!$C55-'Gastos detallados'!$D55","v":{"v":0,"d":"0.00"}}]
[null,"Impresiones adicionales",{"v":25,"d":"25.00"},{"v":25,"d":"25.00"},{"$f":"'Gastos detallados'!$C56-'Gastos detallados'!$D56","v":{"v":0,"d":"0.00"}}]
[null,"Álbumes de fotos",{"v":100,"d":"100.00"},{"v":100,"d":"100.00"},{"$f":"'Gastos detallados'!$C57-'Gastos detallados'!$D57","v":{"v":0,"d":"0.00"}}]
[null,"Vídeo",{"v":200,"d":"200.00"},{"v":150,"d":"150.00"},{"$f":"'Gastos detallados'!$C58-'Gastos detallados'!$D58","v":{"v":50,"d":"50.00"}}]
[null,"Total de la fotografía",{"$f":"SUBTOTAL(109,Fotografía[ESTIMADO])","v":{"v":1625,"d":"1,625.00"}},{"$f":"SUBTOTAL(109,Fotografía[REAL])","v":{"v":1575,"d":"1,575.00"}},{"$f":"SUBTOTAL(109,Fotografía[DIFERENCIA])","v":{"v":50,"d":"50.00"}}]

{"sheet":"Gastos detallados continuados","index":3,"n_rows":51,"n_cols":5,"rows_kept":51,"merged":[[1,1,1,4]]}
[]
[null,"Gastos detallados continuados"]
[]
["Escriba los costos estimados y reales de cada categoría en las respectivas tablas de esta hoja de cálculo. La diferencia se calcula automáticamente. La etiqueta Decoración se encuentra en la celda de la derecha. Encontrará instrucciones útiles sobre cómo usar esta hoja de cálculo en las celdas de esta columna. Presione la tecla de flecha abajo para empezar.","Decoración*"]
["Escriba los costos de la decoración, sin incluir los de las flores, en la tabla que empieza en la celda de la derecha. La instrucción siguiente se encuentra en la celda A11.","CATEGORÍA","ESTIMADO","REAL","DIFERENCIA"]
[null,"Lazos para las sillas",{"v":0,"d":"0.00"},{"v":0,"d":"0.00"},{"$f":"'Gastos detallados continuados'!$C6-'Gastos detallados continuados'!$D6","v":{"v":0,"d":"0.00"}}]
[null,"Centros de mesa",{"v":300,"d":"300.00"},{"v":320,"d":"320.00"},{"$f":"'Gastos detallados continuados'!$C7-'Gastos detallados continuados'!$D7","v":{"v":-20,"d":"-20.00 "}}]
[null,"Velas",{"v":100,"d":"100.00"},{"v":75,"d":"75.00"},{"$f":"'Gastos detallados continuados'!$C8-'Gastos detallados continuados'!$D8","v":{"v":25,"d":"25.00"}}]
[null,"Iluminación",{"v":100,"d":"100.00"},{"v":75,"d":"75.00"},{"$f":"'Gastos detallados continuados'!$C9-'Gastos detallados continuados'!$D9","v":{"v":25,"d":"25.00"}}]
[null,"Globos",{"v":200,"d":"200.00"},{"v":250,"d":"250.00"},{"$f":"'Gastos detallados continuados'!$C10-'Gastos detallados continuados'!$D10","v":{"v":-50,"d":"-50.00 "}}]
[null,"Total de la decoración",{"$f":"SUBTOTAL(109,Decoración[ESTIMADO])","v":{"v":700,"d":"700.00"}},{"$f":"SUBTOTAL(109,Decoración[REAL])","v":{"v":720,"d":"720.00"}},{"$f":"SUBTOTAL(109,Decoración[DIFERENCIA])","v":{"v":-20,"d":"-20.00 "}}]
[null,"*No se incluyen las flores"]
[]
["La etiqueta Flores se encuentra en la celda de la derecha.","Flores"]
["Escriba la información en la tabla Flores que comienza en la celda de la derecha. La instrucción siguiente se encuentra en la celda A20.","CATEGORÍA","ESTIMADO","REAL","DIFERENCIA"]
[null,"Ramos",{"v":500,"d":"500.00"},{"v":450,"d":"450.00"},{"$f":"'Gastos detallados continuados'!$C16-'Gastos detallados continuados'!$D16","v":{"v":50,"d":"50.00"}}]
[null,"Flor del novio",{"v":0,"d":"0.00"},{"v":0,"d":"0.00"},{"$f":"'Gastos detallados continuados'!$C17-'Gastos detallados continuados'!$D17","v":{"v":0,"d":"0.00"}}]
[null,"Ramilletes",{"v":0,"d":"0.00"},{"v":0,"d":"0.00"},{"$f":"'Gastos detallados continuados'!$C18-'Gastos detallados continuados'!$D18","v":{"v":0,"d":"0.00"}}]
[null,"Ceremonia",{"v":400,"d":"400.00"},{"v":400,"d":"400.00"},{"$f":"'Gastos detallados continuados'!$C19-'Gastos detallados continuados'!$D19","v":{"v":0,"d":"0.00"}}]
[null,"Recepción",{"v":0,"d":"0.00"},{"v":0,"d":"0.00"},{"$f":"'Gastos detallados continuados'!$C20-'Gastos detallados continuados'!$D20","v":{"v":0,"d":"0.00"}}]
[null,"Total de las flores",{"$f":"SUBTOTAL(109,Flores[ESTIMADO])","v":{"v":900,"d":"900.00"}},{"$f":"SUBTOTAL(109,Flores[REAL])","v":{"v":850,"d":"850.00"}},{"$f":"SUBTOTAL(109,Flores[DIFERENCIA])","v":{"v":50,"d":"50.00"}}]
[]
["La etiqueta Regalos se encuentra en la celda de la derecha.","Regalos"]
["Escriba la información en la tabla Regalos que comienza en la celda de la derecha. La instrucción siguiente se encuentra en la celda A29.","CATEGORÍA","ESTIMADO","REAL","DIFERENCIA"]
[null,"Asistentes",{"v":1000,"d":"1,000.00"},{"v":400,"d":"400.00"},{"$f":"'Gastos detallados continuados'!$C25-'Gastos detallados continuados'!$D25","v":{"v":600,"d":"600.00"}}]
[null,"Futuro cónyuge 1",{"v":150,"d":"150.00"},{"v":200,"d":"200.00"},{"$f":"'Gastos detallados continuados'!$C26-'Gastos detallados continuados'!$D26","v":{"v":-50,"d":"-50.00 "}}]
[null,"Futuro cónyuge 2",{"v":150,"d":"150.00"},{"v":200,"d":"200.00"},{"$f":"'Gastos detallados continuados'!$C27-'Gastos detallados continuados'!$D27","v":{"v":-50,"d":"-50.00 "}}]
[null,"Padres",{"v":25,"d":"25.00"},{"v":25,"d":"25.00"},{"$f":"'Gastos detallados continuados'!$C28-'Gastos detallados continuados'!$D28","v":{"v":0,"d":"0.00"}}]
[null,"Lectores y otros participantes",{"v":20,"d":"20.00"},{"v":250,"d":"250.00"},{"$f":"'Gastos detallados continuados'!$C29-'Gastos detallados continuados'!$D29","v":{"v":-230,"d":"-230.00 "}}]
[null,"Total de los regalos",{"$f":"SUBTOTAL(109,Regalos[ESTIMADO])","v":{"v":1345,"d":"1,345.00"}},{"$f":"SUBTOTAL(109,Regalos[REAL])","v":{"v":1075,"d":"1,075.00"}},{"$f":"SUBTOTAL(109,Regalos[DIFERENCIA])","v":{"v":270,"d":"270.00"}}]
[]
["La etiqueta Viajes o Transporte se encuentra en la celda de la derecha.","Viajes y transporte"]
["Escriba los detalles en la tabla Viajes que comienza en la celda de la derecha. La instrucción siguiente se encuentra en la celda A36.","CATEGORÍA","ESTIMADO","REAL","DIFERENCIA"]
[null,"Limusinas o carruajes",{"v":100,"d":"100.00"},{"v":125,"d":"125.00"},{"$f":"'Gastos detallados continuados'!$C34-'Gastos detallados continuados'!$D34","v":{"v":-25,"d":"-25.00 "}}]
[null,"Aparcamiento",{"v":0,"d":"0.00"},{"v":40,"d":"40.00"},{"$f":"'Gastos detallados continuados'!$C35-'Gastos detallados continuados'!$D35","v":{"v":-40,"d":"-40.00 "}}]
[null,"Taxis",{"v":0,"d":"0.00"},{"v":0,"d":"0.00"},{"$f":"'Gastos detallados continuados'!$C36-'Gastos detallados continuados'!$D36","v":{"v":0,"d":"0.00"}}]
[null,"Total de los viajes y el transporte",{"$f":"SUBTOTAL(109,Viajes[ESTIMADO])","v":{"v":100,"d":"100.00"}},{"$f":"SUBTOTAL(109,Viajes[REAL])","v":{"v":165,"d":"165.00"}},{"$f":"SUBTOTAL(109,Viajes[DIFERENCIA])","v":{"v":-65,"d":"-65.00 "}}]
[]
["La etiqueta Otros gastos se encuentra en la celda de la derecha.","Otros gastos"]
["Escriba los detalles en la tabla Otros gastos, a partir de la celda a la derecha.","CATEGORÍA","ESTIMADO","REAL","DIFERENCIA"]
[null,"Oficiante",{"v":0,"d":"0.00"},{"v":0,"d":"0.00"},{"$f":"'Gastos detallados continuados'!$C41-'Gastos detallados continuados'!$D41","v":{"v":0,"d":"0.00"}}]
[null,"Cuota de la iglesia o del sitio de la ceremonia",{"v":40,"d":"40.00"},{"v":55,"d":"55.00"},{"$f":"'Gastos detallados continuados'!$C42-'Gastos detallados continuados'!$D42","v":{"v":-15,"d":"-15.00 "}}]
[null,"Coordinador de la boda",{"v":0,"d":"0.00"},{"v":0,"d":"0.00"},{"$f":"'Gastos detallados continuados'!$C43-'Gastos detallados continuados'!$D43","v":{"v":0,"d":"0.00"}}]
[null,"Cena preboda",{"v":450,"d":"450.00"},{"v":450,"d":"450.00"},{"$f":"'Gastos detallados continuados'!$C44-'Gastos detallados continuados'!$D44","v":{"v":0,"d":"0.00"}}]
[null,"Fiesta de compromiso",{"v":20,"d":"20.00"},{"v":50,"d":"50.00"},{"$f":"'Gastos detallados continuados'!$C45-'Gastos detallados continuados'!$D45","v":{"v":-30,"d":"-30.00 "}}]
[null,"Duchas",{"v":30,"d":"30.00"},{"v":20,"d":"20.00"},{"$f":"'Gastos detallados continuados'!$C46-'Gastos detallados continuados'!$D46","v":{"v":10,"d":"10.00"}}]
[null,"Citas del salón",{"v":45,"d":"45.00"},{"v":46,"d":"46.00"},{"$f":"'Gastos detallados continuados'!$C47-'Gastos detallados continuados'!$D47","v":{"v":-1,"d":"-1.00 "}}]
[null,"Despedida de soltero y de soltera",{"v":0,"d":"0.00"},{"v":0,"d":"0.00"},{"$f":"'Gastos detallados continuados'!$C48-'Gastos detallados continuados'!$D48","v":{"v":0,"d":"0.00"}}]
[null,"Almuerzo",{"v":300,"d":"300.00"},{"v":400,"d":"400.00"},{"$f":"'Gastos detallados continuados'!$C49-'Gastos detallados continuados'!$D49","v":{"v":-100,"d":"-100.00 "}}]
[null,"Habitaciones de hotel",{"v":0,"d":"0.00"},{"v":0,"d":"0.00"},{"$f":"'Gastos detallados continuados'!$C50-'Gastos detallados continuados'!$D50","v":{"v":0,"d":"0.00"}}]
[null,"Total de otros gastos",{"$f":"SUBTOTAL(109,OtrosGastos[ESTIMADO])","v":{"v":885,"d":"885.00"}},{"$f":"SUBTOTAL(109,OtrosGastos[REAL])","v":{"v":1021,"d":"1,021.00"}},{"$f":"SUBTOTAL(109,OtrosGastos[DIFERENCIA])","v":{"v":-136,"d":"-136.00 "}}]